Cogmind - Beta 12 @@@ ROGUE MODE // 2023.06.25 @ 19:55:08 Player: a602-5 Result: Smashed by cave-in Performance ------------- Evolutions (0) 0 Regions Visited (2) 400 Robots Destroyed (12) 60 Value Destroyed (189) 189 Prototype IDs (0) 0 Alien Tech Used (0) 0 Bonus (0) 0 TOTAL SCORE: 649 Bonus ------- None Cogmind --------- Core Integrity 0/250 Matter 400/400 Energy 224/250 System Corruption 8% Temperature Cool (52) Movement Core (300) Ox5 Location -10/Mines Parts ------- > --- POWER (1) -------- Ion Engine > --- PROPULSION (2) --- (None) > --- UTILITY (2) ------ Medium Storage Unit Medium Matter Pod > --- WEAPON (2) ------- (None) > --- INVENTORY (10) --- Ion Engine Improved Treads Medium Laser Peak State ------------ > --- POWER ------------ Ion Engine > --- PROPULSION ------- Improved Treads Improved Treads > --- UTILITY ---------- Small Storage Unit Medium Matter Pod > --- WEAPON ----------- EM Pulse Gun Light EM Pulse Cannon > --- INVENTORY -------- Ion Engine Improved Treads Medium Laser [Rating: 10] Favorites ----------- Power Ion Engine Engine Ion Engine Propulsion Improved Treads Treads Improved Treads Utility Medium Matter Pod Storage Medium Matter Pod Weapon EM Pulse Gun Energy Gun EM Pulse Gun Energy Cannon Light EM Pulse Cannon Build | -11 -10 -10 ------- Run | Jun Mat Min Slots Evolved . | . . . Power . | . . . Propulsion . | . . . Utility . | . . . Weapon . | . . . Parts Attached 12 | 6 6 . Power 1 | 1 . . Engine 1 | 1 . . Core . | . . . Reactor . | . . . Propulsion 5 | 2 3 . Treads 5 | 2 3 . Leg . | . . . Wheel . | . . . Hover . | . . . Flight . | . . . Utility 3 | 1 2 . Device . | . . . Storage 3 | 1 2 . Processor . | . . . Hackware . | . . . Protection . | . . . Artifact . | . . . Weapon 3 | 2 1 . Energy Gun 2 | 2 . . Energy Cannon 1 | . 1 . Ballistic Gun . | . . . Ballistic Cannon . | . . . Launcher . | . . . Special Weapon . | . . . Impact Weapon . | . . . Slashing Weapon . | . . . Piercing Weapon . | . . . Special Melee Weapon . | . . . Unidentified Prototypes . | . . . Parts Lost 3 | . . 3 Power . | . . . Propulsion 1 | . . 1 Utility . | . . . Weapon 2 | . . 2 Highest Loss Streak 3 | . . 3 To Critical Strikes . | . . . Average Slot Usage (%) 96 | . 95 99 Engine 14 | . 14 14 Treads 27 | . 28 27 Storage 24 | . 23 28 Energy Gun 14 | . 14 14 Energy Cannon 13 | . 13 14 Naked Turns . | . . . Heaviest Build 23 | 14 23 23 Greatest Support 46 | 40 46 23 Greatest Overweight (x) . | . . . Average Overweight (x) . | . . . Largest Inventory Capacity 10 | 8 10 10 Average Capacity 9 | 6 9 10 Most Carried 7 | 4 7 3 Average Carried 3 | 1 3 3 Final Capacity 10 | 8 10 10 Final Carried 3 | 2 3 3 Class Distribution -------------------- 100% | Mutant Dominant Class ---------------- Mutant | -10/Materials Mutant | -10/Mines Resources | -11 -10 -10 ----------- Run | Jun Mat Min Matter Collected 366 | 176 190 . Remotely . | . . . Salvage Created 247 | . 199 48 Parts 22 | . 16 6 Haulers Intercepted . | . . . Recyclers Shooed . | . . . Parts Field Recycled . | . . . Retrieved Matter . | . . . Parts Self-Destructed . | . . . Prevented . | . . . Kills | -11 -10 -10 ------- Run | Jun Mat Min Combat Hostiles Destroyed 11 | . 8 3 Guns 5 | . 3 2 Cannons 3 | . 2 1 AOE 3 | . 3 . Classes Destroyed 3 | . 3 . Worker 1 | . 1 . Swarmer 9 | . 6 3 Grunt 2 | . 2 . Best Kill Streak 3 | . 3 3 Combat Bots Only 3 | . 3 3 Max Kills in Single Turn 3 | . 3 1 Gunslinging . | . . . Exploded 2 | . 2 . Melee . | . . . Uniques/NPCs Destroyed . | . . . Combat | -11 -10 -10 -------- Run | Jun Mat Min Damage Taken 848 | . 217 631 Core 254 | . 24 230 Absorbed by Shields . | . . . Core Remaining (%) 100 | 100 . . Volleys Fired 18 | . 10 8 Largest 2 | . 2 2 Hottest 96 | . 96 96 Shots Fired 36 | . 20 16 Gun 18 | . 10 8 Cannon 18 | . 10 8 Launcher . | . . . Special . | . . . Kinetic . | . . . Thermal . | . . . Explosive . | . . . Electromagnetic 36 | . 20 16 Robot Hit Streak 5 | . 5 3 Robot Miss Streak 3 | . 2 3 Penetration Max . | . . . Secondary Targets . | . . . Shots Hit Robots 17 | . 10 7 Core Hits 13 | . 9 4 Critical Kills . | . . . Critical Parts Destroyed . | . . . Critical Strikes . | . . . Melee Attacks . | . . . Impact . | . . . Slashing . | . . . Piercing . | . . . Sneak Attacks . | . . . Combat Hostiles . | . . . Follow-up Attacks . | . . . Damage Inflicted 417 | . 309 108 Guns 100 | . 68 32 Cannons 176 | . 100 76 Explosions 141 | . 141 . Melee . | . . . Ramming . | . . . Kinetic . | . . . Thermal 119 | . 119 . Explosive 22 | . 22 . Electromagnetic 276 | . 168 108 Impact . | . . . Slashing . | . . . Piercing . | . . . Highest Corruption . | . . . Average Corruption . | . . . Corruption Purged . | . . . Corruption Blocked . | . . . Overload Shots . | . . . Overflow Damage 17 | . 17 . Projectiles . | . . . Explosions 17 | . 17 . Melee . | . . . Knockbacks . | . . . Impact . | . . . Kinetic . | . . . Secondary . | . . . Self-Inflicted Damage 114 | . 114 . Shots 3 | . 3 . Rammed . | . . . Targets Rammed . | . . . Kicked . | . . . Crushed . | . . . Highest Temperature 180 | . 144 180 Average Temperature 67 | . 58 77 Received Heat Transfer 60 | . . 60 Siege Activations . | . . . Robots Corrupted . | . . . Combat Hostiles . | . . . Parts Fried 1 | . . 1 Impact Corruptions . | . . . Robots Melted . | . . . Combat Hostiles . | . . . Parts Melted . | . . . Heat Transferred 200 | . 200 . Parts Sabotaged . | . . . Parts Stolen . | . . . Parts Stripped . | . . . Power Chain Reactions 2 | . 2 . Missiles Intercepted . | . . . Alert | -11 -10 -10 ------- Run | Jun Mat Min Peak Influence 187 | . 187 110 Initial 40 | . . 40 Average 78 | . 71 108 Maximum Alert Level . | . . . Low Security (%) 100 | 100 100 100 Level 1 . | . . . Level 2 . | . . . Level 3 . | . . . Level 4 . | . . . Level 5 . | . . . High Security . | . . . Max Security . | . . . Squads Dispatched 1 | . 1 . Investigation . | . . . Extermination . | . . . Reinforcement 1 | . 1 . Assault . | . . . Garrison . | . . . Intercept . | . . . Searches Triggered . | . . . Construction Impeded . | . . . Haulers Reinforced . | . . . Active Scanning Responses . | . . . Cargo Convoy Interrupts . | . . . Stealth | -11 -10 -10 --------- Run | Jun Mat Min Distress Signals . | . . . Communications Jammed . | . . . Distress Signals . | . . . Times Spotted 30 | . 15 15 Peak Tracking Total 12 | . 4 12 Tactical Retreats 1 | . 1 . Traps | -11 -10 -10 ------- Run | Jun Mat Min Traps Triggered . | . . . Indirectly . | . . . Trap Hack Attempts . | . . . Triggered . | . . . Disarmed . | . . . Reprogrammed . | . . . Reused . | . . . Traps Extracted . | . . . Installed . | . . . Triggered . | . . . Machines | -11 -10 -10 ---------- Run | Jun Mat Min Machines Disabled 3 | . 3 . Max in Single Turn 2 | . 2 . Machines Repaired . | . . . Machines Sabotaged . | . . . Overloaded Fab Kills . | . . . Hacking | -11 -10 -10 --------- Run | Jun Mat Min Machines Accessed 4 | . 4 . Terminals 3 | . 3 . Fabricators . | . . . Repair Stations . | . . . Recycling Units 1 | . 1 . Scanalyzers . | . . . Garrison Access . | . . . Total Hacks 20 | . 20 . Successful 15 | . 15 . Failed 5 | . 5 . Catastrophic . | . . . Database Lockouts . | . . . Manual . | . . . Terminals 7 | . 7 . Fabricators . | . . . Repair Stations . | . . . Recycling Units 13 | . 13 . Scanalyzers . | . . . Garrison Access . | . . . Terminal Hacks 5 | . 5 . Record 4 | . 4 . Alert Level 1 | . 1 . Fabricator Hacks . | . . . Repair Station Hacks . | . . . Recycling Unit Hacks 10 | . 10 . Recycle Component 6 | . 6 . Process 2 | . 2 . Report Inventory 1 | . 1 . Retrieve Matter 1 | . 1 . Scanalyzer . | . . . Garrison Access Hacks . | . . . Unauthorized Hacks . | . . . Terminals . | . . . Fabricators . | . . . Repair Stations . | . . . Recycling Units . | . . . Scanalyzers . | . . . Garrison Access . | . . . Data Cores Recovered . | . . . Used . | . . . Hacking Detections 3 | . 3 . Full Trace Events 2 | . 2 . Feedback Events . | . . . Feedback Blocked . | . . . Robot Schematics Acquired . | . . . Robots Built . | . . . Authchips . | . . . Time . | . . . Total Robot Build Rating . | . . . Part Schematics Acquired . | . . . Parts Built . | . . . Authchips . | . . . Time . | . . . Total Part Build Rating . | . . . Parts Repaired . | . . . Time . | . . . Parts Recycled 6 | . 6 . Recycled Matter 58 | . 58 . Retrieved Matter 58 | . 58 . Retrieved Components . | . . . Parts Scanalyzed . | . . . Part Schematics Acquired . | . . . Parts Damaged . | . . . Bothacking | -11 -10 -10 ------------ Run | Jun Mat Min Used RIF Installer . | . . . Robots Hacked . | . . . Non-combat . | . . . Combat . | . . . Robot Hacks Applied . | . . . Relay Couplers Released . | . . . Fabnet Peak Effective % . | . . . Robots Rewired . | . . . Allies Hacked . | . . . Hacks Repelled . | . . . Allies | -11 -10 -10 -------- Run | Jun Mat Min Total Allies . | . . . Largest Group . | . . . Highest-Rated Group . | . . . Highest-Rated Ally . | . . . Total Orders . | . . . Ally Attacks . | . . . Total Damage . | . . . Kills . | . . . Allies Corrupted . | . . . Allies Melted . | . . . Intel | -11 -10 -10 ------- Run | Jun Mat Min Robot Analysis Total . | . . . Derelict Logs Recovered . | . . . Drone Launches . | . . . Drone Recoveries . | . . . Exploration | -11 -10 -10 ------------- Run | Jun Mat Min Turns Passed 1062 | 65 669 328 Spaces Moved 616 | 45 382 189 Core 21 | 21 . . Treads 595 | 24 382 189 Legs . | . . . Wheels . | . . . Hover . | . . . Flight . | . . . Fastest Speed 50 | 50 160 160 Average Speed 156 | 108 160 160 Slowest Speed 160 | 160 160 160 Overloaded Moves . | . . . Propulsion Burnouts . | . . . Robots Hopped . | . . . Cave-ins Triggered 1 | . . 1 Exploration Rate (%) 33 | 4 48 48 Regions Visited 2 Branch Regions 1 Pre-discovered Areas . | . . . Known Exits Taken . | . . . Unknown Exits Taken 2 | 1 1 . Scrap Searched . | . . . Spaces Dug . | . . . Terrain Destroyed 28 | . 28 . Melee . | . . . Projectile . | . . . AOE 28 | . 28 . Terrain Rammed . | . . . Walls Destroyed . | . . . Machines Disabled . | . . . Actions | -11 -10 -10 --------- Run | Jun Mat Min Total 682 | 62 420 200 Wait 8 | . 5 3 Move 614 | 44 381 189 Hop . | . . . Pick Up 23 | 10 13 . Fast Attach . | . . . Attach 7 | 6 1 . Detach . | . . . Swap 5 | . 5 . Drop 7 | 2 5 . Fire 18 | . 10 8 Melee . | . . . Ram . | . . . Kick . | . . . Crush . | . . . Escape Stasis . | . . . Rewire . | . . . Trap . | . . . Miscellaneous . | . . . Route ------- -11/Junkyard -10/Materials (discovered 2 exits: [*Mat] / [*Min]) -10/Mines History --------- Turn | Location | Event 42 | -11/Junkyard | Discovered new exit (range 14) 66 | -11/Junkyard | Entered Materials 325 | -10/Materials | Build established: Mutant 359 | -10/Materials | Discovered new exit (range 4) 610 | -10/Materials | Discovered new exit (range 16) 735 | -10/Materials | Entered Mines 1014 | -10/Mines | Assembled infested the area 1064 | -10/Mines | Crushed by falling debris 1064 | -10/Mines | Smashed by cave-in Last Messages --------------- 00917_ K-01 Serf collects debris. 01014_ ALERT: Infestation in the mines, dispatching Demolisher response squad. 01057_ Imp. Treads severed. 01060_ C-30 ARC bursts open, deploying its payload. 01060_ D-53 Grenadier unfolds itself. 01061_ Lgt. EM Pulse Cannon destroyed. 01061_ as-54382 destroyed. 01061_ as-34570 destroyed. 01061_ as-20066 destroyed. 01063_ Core Extractor disabled. 01063_ as-05306 destroyed. 01063_ as-51021 destroyed. 01063_ as-30205 destroyed. 01064_ The unstable cave ceiling collapses. 01064_ Crushed by falling debris. 01064_ Imp. Treads destroyed. 01064_ System corrupted by crushing effect (+5). 01064_ EM Pulse Gun destroyed. 01064_ System corrupted by crushing effect (+3). Map ----- +----------------------------------------------------+ | | | ?????????????????????????????????????????? | | ?????????????????????????????????????????? | | ?????????????????????????????????????????? | | ?????????????????????????????????????????? | | ?????????????????????????????????????????? | | ?????????????????????????????????????????? | | ?????????????????????????????????????????? | | ?????????????????????????????????????????? | | ?????????????????????????????????????????? | | ?????????????????????????????????????????? | | ?????????????????????????????????????????? | | ?????????????????????????????????????????? | | ?????????????????????????????????????????? | | ?????????????????????????????????????????? | | ?????????????????????????????????????????? | | ?????????????????????????????????????????? | | ?????????????????????????????????????????? | | ??????????????????###????????????????????? | | ??????????????#### ##???????????????????? | | ??????????????# ####????????????????? | | ?????????????## ##a#?????????????? | | ?????????????# = a a a #?????????????? | | ?????????????# ###??????????????? | | ?????????##### #??????????????????? | | ?????????# # @ ###??????????????????? | | ?????????# # dd #????????????????????? | | ??????????# % #????????????????????# | | ?????????## #????????????????????# | | ?????????# """ ????????????????????# | | ?????????# """ ###???????????????????? | | ?????????# ##?????????????????????? | | ?????????## #???????????####???????? | | ??????????## #??????????## #???????? | | ???????????# #??????????# #???????? | | ??????????## #?????####?# #?# ???? | | ??????????# #????## ### #?# # | | ??????????# ##???# ## ##?# | | ??????????# ##??# #??# | | ??????????## #### ##??# | | ???????????#### #??# | | ??????????????## ##?# | | ???????????????###### #?# | | ????????????????????#### #### #?# ? | | ???????????????????????#####??## ### ??? | | ???????????????????????????????## ##????? | | ???????????????????????????????## #????? | | ????????????????????????######## #????? | | ????????????????????????# ##???# | | ????????????????????????# ##### | +----------------------------------------------------+ Best States ------------- Heat Dissipation 25 Energy Generation 10 Energy Capacity 250 Matter Stores 400 Matter Capacity 400 Sight Range 16 Terrain Scan Density 10 Evasion (%) 50 Recoil Reduction 2 Item Schematics ----------------- None Robot Schematics ------------------ None Fabricated ------------ Nothing Alien Tech Used ----------------- None Achievements -------------- None Challenges ------------ None Game ------ Seed XenonIntegrityNetwork Manual? 0 Play Time 00:11:48 Cumulative 9.9 hours Start 2023.06.25 @ 19:34:49 End 2023.06.25 @ 19:55:08 Sessions 1 Manual Loads 0 Difficulty Rogue Special Mode None Game No. 31 Rogue 31 Adventurer 0 Explorer 0 Win Type - Total 0 Types 0/0/0/0/0/0/0/0/0 Lore% 2 Gallery% 15 Achievement% 12 Wizard Run 0 Options --------- ASCII 0 Keyboard 0 Movement Numpad Keybinds 0 Fullscreen 2 Font 18/Terminus Map View 76x50 Tactical HUD 1 Map Filters NONE Filters NONE Steam 1 RUN: a8464939-7bec-45a6-bce6-eb74f5ea5913